fUSD/lending_fUSD_20260620
["ID","MTS","AMOUNT","RATE_DAILY","PERIOD"]
[425831840,1781956243000,-500.0,0.00021369,2]
[425831839,1781956243000,-500.0,0.00021369,2]
[425831845,1781956243000,-500.0,0.00021618,2]
[425831833,1781956243000,-504.0,0.00021091,3]
[425831844,1781956243000,-1934.38338736,0.00021572,2]
[425831852,1781956243000,-156.0,0.00022,2]
[425831849,1781956243000,-268.127308,0.00021843,2]
[425831848,1781956243000,-162.35,0.00021835,2]
[425831847,1781956243000,-166.66,0.00021711,2]
[425831851,1781956243000,-173.0,0.00022,2]
[425831853,1781956243000,-352.0,0.00022,2]
[425831850,1781956243000,-1830.344,0.000219,2]
[425831854,1781956243000,-638.0,0.00022,2]
[425831855,1781956243000,-166.0,0.00022,2]
[425831857,1781956243000,-168.0,0.00022,2]
[425831856,1781956243000,-179.0,0.00022,2]
[425831804,1781956243000,-216.0,0.00019769,2]
[425831846,1781956243000,-245.49673122,0.00021706,2]
[425831831,1781956243000,-1865.36488656,0.00021024,2]
[425831789,1781956243000,-1500.0,0.00017736,2]
[425831827,1781956243000,-179.0,0.00021,2]
[425831829,1781956243000,-186.0,0.00021,2]
[425831802,1781956243000,-1672.7364795,0.0001938,2]
[425831803,1781956243000,-495.0,0.00019452,2]
[425831808,1781956243000,-352.0,0.0002,2]
[425831805,1781956243000,-1734.62772924,0.00019928,2]
[425831811,1781956243000,-179.0,0.0002,2]
[425831809,1781956243000,-638.0,0.0002,2]
[425831807,1781956243000,-156.0,0.0002,2]
[425831810,1781956243000,-166.0,0.0002,2]
[425831814,1781956243000,-168.0,0.0002,2]
[425831813,1781956243000,-161.0,0.0002,2]
[425831815,1781956243000,-186.0,0.0002,2]
[425831806,1781956243000,-173.0,0.0002,2]
[425831817,1781956243000,-171.075569,0.0002,2]
[425831819,1781956243000,-460.0,0.00020136,2]
[425831828,1781956243000,-168.0,0.00021,2]
[425831825,1781956243000,-638.0,0.00021,2]
[425831824,1781956243000,-352.0,0.00021,2]
[425831821,1781956243000,-1798.80895522,0.00020476,2]
[425831826,1781956243000,-166.0,0.00021,2]
[425831822,1781956243000,-173.0,0.00021,2]
[425831820,1781956243000,-263.3,0.00020381,2]
[425831830,1781956243000,-189.0,0.00021,2]
[425831818,1781956243000,-5186.15843563,0.00020116,2]
[425831816,1781956243000,-189.0,0.0002,2]
[425831823,1781956243000,-156.0,0.00021,2]
[425831891,1781956244000,-151.0,0.00022668,2]
[425831897,1781956244000,-500.0,0.00022669,2]
[425831895,1781956244000,-235.05467129,0.00022668,2]
[425831894,1781956244000,-151.0,0.00022668,2]
[425831892,1781956244000,-151.0,0.00022668,2]
[425831898,1781956244000,-500.0,0.00022669,2]
[425831893,1781956244000,-151.0,0.00022668,2]
[425831890,1781956244000,-151.0,0.00022668,2]
[425831899,1781956244000,-151.0,0.00022669,2]
[425831881,1781956244000,-151.0,0.00022668,2]
[425831896,1781956244000,-500.0,0.00022669,2]
[425831902,1781956244000,-500.0,0.00022669,2]
[425831907,1781956244000,-151.0,0.00022669,2]
[425831900,1781956244000,-500.0,0.00022669,2]
[425831904,1781956244000,-500.0,0.00022669,2]
[425831910,1781956244000,-500.0,0.00022669,2]
[425831906,1781956244000,-500.0,0.00022669,2]
[425831903,1781956244000,-151.0,0.00022669,2]
[425831909,1781956244000,-151.0,0.00022669,2]
[425831901,1781956244000,-151.0,0.00022669,2]
[425831905,1781956244000,-151.0,0.00022669,2]
[425831914,1781956244000,-500.0,0.00022669,2]
[425831911,1781956244000,-151.0,0.00022669,2]
[425831888,1781956244000,-151.0,0.00022668,2]
[425831917,1781956244000,-151.0,0.00022669,2]
[425831921,1781956244000,-1894.29,0.00023,7]
[425831908,1781956244000,-500.0,0.00022669,2]
[425831884,1781956244000,-151.0,0.00022668,2]
[425831874,1781956244000,-197.5779,0.00022568,2]
[425831889,1781956244000,-151.0,0.00022668,2]
[425831916,1781956244000,-151.0,0.00022669,2]
[425831861,1781956244000,-5186.15843563,0.00022071,2]
[425831859,1781956244000,-189.0,0.00022,2]
[425831864,1781956244000,-166.66,0.00022168,30]
[425831862,1781956244000,-193.28,0.00022095,2]
[425831860,1781956244000,-1010.04,0.0002201,2]
[425831863,1781956244000,-2092.08275772,0.0002212,2]
[425831865,1781956244000,-504.0,0.00022182,4]
[425831867,1781956244000,-311.07,0.00022256,2]
[425831869,1781956244000,-263.3,0.00022353,2]
[425831866,1781956244000,-154.26,0.00022238,2]
[425831868,1781956244000,-6499.59,0.00022289,2]
[425831882,1781956244000,-151.0,0.00022668,2]
[425831871,1781956244000,-342.53,0.00022466,2]
[425831870,1781956244000,-1268.94,0.00022466,2]
[425831875,1781956244000,-166.66,0.00022625,30]
[425831873,1781956244000,-14301.81912952,0.00022568,2]
[425831876,1781956244000,-199.72,0.0002263,2]
[425831877,1781956244000,-200.0,0.00022668,2]
[425831887,1781956244000,-151.0,0.00022668,2]
[425831883,1781956244000,-151.0,0.00022668,2]
[425831879,1781956244000,-151.0,0.00022668,2]
[425831886,1781956244000,-151.0,0.00022668,2]
[425831878,1781956244000,-151.0,0.00022668,2]
[425831880,1781956244000,-151.0,0.00022668,2]
[425831885,1781956244000,-151.0,0.00022668,2]
[425831872,1781956244000,-150.0,0.0002254,2]
[425831858,1781956244000,-186.0,0.00022,2]
[425831912,1781956244000,-500.0,0.00022669,2]
[425831913,1781956244000,-151.0,0.00022669,2]
[425831949,1781956244000,-168.0,0.00024,2]
[425831958,1781956244000,-154.26,0.00024462,2]
[425831954,1781956244000,-2500.0,0.00024246,2]
[425831957,1781956244000,-504.0,0.00024364,6]
[425831952,1781956244000,-5186.15843563,0.00024026,2]
[425831950,1781956244000,-186.0,0.00024,2]
[425831951,1781956244000,-189.0,0.00024,2]
[425831955,1781956244000,-263.3,0.00024324,2]
[425831959,1781956244000,-162.35,0.00024564,2]
[425831953,1781956244000,-166.66,0.00024184,2]
[425831956,1781956244000,-37705.57,0.00024346,7]
[425831960,1781956244000,-163.83,0.00024658,2]
[425831944,1781956244000,-173.0,0.00024,2]
[425831962,1781956244000,-161.35,0.00024658,2]
[425831964,1781956244000,-160.65,0.00024658,2]
[425831963,1781956244000,-160.8,0.00024658,2]
[425831965,1781956244000,-2000.0,0.00024757,2]
[425831968,1781956244000,-216.28381402,0.00024853,2]
[425831967,1781956244000,-150.0,0.0002485,2]
[425831969,1781956244000,-166.66,0.00024932,2]
[425831971,1781956244000,-900.0,0.00024984,2]
[425831970,1781956244000,-182.573528,0.00024945,14]
[425831972,1781956244000,-183.0,0.00025,2]
[425831973,1781956244000,-363.0,0.00025,2]
[425831974,1781956244000,-644.0,0.00025,2]
[425831922,1781956244000,-40200.96,0.00023,7]
[425831961,1781956244000,-1000.0,0.00024658,2]
[425831938,1781956244000,-900.0,0.00023614,2]
[425831966,1781956244000,-268.127307,0.00024824,14]
[425831947,1781956244000,-166.0,0.00024,2]
[425831945,1781956244000,-352.0,0.00024,2]
[425831918,1781956244000,-166.66,0.00022686,2]
[425831920,1781956244000,-154.26,0.0002298,2]
[425831923,1781956244000,-173.0,0.00023,2]
[425831915,1781956244000,-151.0,0.00022669,2]
[425831924,1781956244000,-172.80927344,0.00023,2]
[425831927,1781956244000,-166.0,0.00023,2]
[425831926,1781956244000,-638.0,0.00023,2]
[425831925,1781956244000,-352.0,0.00023,2]
[425831928,1781956244000,-179.0,0.00023,2]
[425831935,1781956244000,-504.0,0.00023273,5]
[425831929,1781956244000,-168.0,0.00023,2]
[425831930,1781956244000,-186.0,0.00023,2]
[425831919,1781956244000,-209.27162967,0.00022724,2]
[425831932,1781956244000,-166.66,0.00023082,30]
[425831934,1781956244000,-194.2,0.00023238,7]
[425831936,1781956244000,-166.66,0.00023435,2]
[425831946,1781956244000,-638.0,0.00024,2]
[425831941,1781956244000,-14301.81912946,0.00023816,2]
[425831943,1781956244000,-166.66,0.00023996,30]
[425831948,1781956244000,-179.0,0.00024,2]
[425831942,1781956244000,-5000.0,0.00023857,2]
[425831937,1781956244000,-166.66,0.00023539,30]
[425831933,1781956244000,-153.40289693,0.0002321,2]
[425831931,1781956244000,-189.0,0.00023,2]
[425831940,1781956244000,-154.26,0.00023721,2]
[425831939,1781956244000,-150.0,0.00023667,2]
[425831997,1781956245000,-500.0,0.00026253,2]
[425832009,1781956245000,-153.0,0.00027,10]
[425832000,1781956245000,-14301.81912946,0.00026312,2]
[425832003,1781956245000,-292.837444,0.00026466,2]
[425832005,1781956245000,-150.0,0.00026467,5]
[425832007,1781956245000,-504.0,0.00026545,8]
[425832006,1781956245000,-1787.92207337,0.00026475,10]
[425832013,1781956245000,-32419.29,0.00027039,7]
[425832008,1781956245000,-373.2076998,0.0002699,2]
[425832011,1781956245000,-500.0,0.00027038,2]
[425832016,1781956245000,-383.0,0.00027151,2]
[425832004,1781956245000,-455.587484,0.00026467,2]
[425832014,1781956245000,-3560.0,0.00027151,2]
[425832012,1781956245000,-500.0,0.00027038,2]
[425832015,1781956245000,-1276.0,0.00027151,2]
[425832017,1781956245000,-1229.0,0.00027151,2]
[425832026,1781956245000,-417.06247972,0.00027284,2]
[425832018,1781956245000,-250.0,0.00027151,2]
[425832019,1781956245000,-215.0,0.00027151,2]
[425831999,1781956245000,-263.3,0.00026296,2]
[425832010,1781956245000,-150.0,0.00027,2]
[425831995,1781956245000,-500.0,0.00026253,2]
[425831989,1781956245000,-166.66,0.00025681,2]
[425831992,1781956245000,-3066.47522579,0.00025993,2]
[425832022,1781956245000,-6081.0,0.00027151,2]
[425831975,1781956245000,-167.0,0.00025,2]
[425831976,1781956245000,-198.81065129,0.00025,2]
[425831977,1781956245000,-170.0,0.00025,2]
[425831978,1781956245000,-202.0,0.00025,2]
[425831982,1781956245000,-504.0,0.00025455,7]
[425831981,1781956245000,-14301.81912946,0.00025064,2]
[425831979,1781956245000,-199.0,0.00025,2]
[425831980,1781956245000,-164.14,0.00025,2]
[425831987,1781956245000,-500.0,0.00025467,2]
[425832001,1781956245000,-166.66,0.0002643,2]
[425831983,1781956245000,-199.72,0.00025459,2]
[425831984,1781956245000,-500.0,0.00025467,2]
[425831985,1781956245000,-500.0,0.00025467,2]
[425831986,1781956245000,-506.58524709,0.00025467,2]
[425831990,1781956245000,-34617.16,0.00025692,7]
[425831991,1781956245000,-5186.15843563,0.0002598,2]
[425831993,1781956245000,-150.0,0.00026093,2]
[425831996,1781956245000,-500.0,0.00026253,2]
[425832002,1781956245000,-295.708398,0.00026466,2]
[425831994,1781956245000,-152.0,0.00026185,3]
[425831998,1781956245000,-500.0,0.00026253,2]
[425831988,1781956245000,-1652.5,0.00025468,7]
[425832025,1781956245000,-578.20924308,0.00027284,2]
[425832021,1781956245000,-248.831,0.00027151,2]
[425832023,1781956245000,-168.06,0.00027151,2]
[425832050,1781956245000,-500.0,0.00027284,2]
[425832055,1781956245000,-253.04866439,0.00027397,2]
[425832048,1781956245000,-500.0,0.00027284,2]
[425832053,1781956245000,-3066.47522578,0.00027369,2]
[425832054,1781956245000,-151.0,0.00027394,2]
[425832051,1781956245000,-162.35,0.00027294,120]
[425832052,1781956245000,-151.0,0.00027339,2]
[425832056,1781956245000,-1500.0,0.00027397,2]
[425832059,1781956245000,-6118.53,0.00027397,10]
[425832061,1781956245000,-150.0,0.00027398,2]
[425832062,1781956245000,-151.0,0.00027449,2]
[425832065,1781956245000,-150.0,0.00027526,5]
[425832066,1781956245000,-155.08,0.0002755,30]
[425832064,1781956245000,-151.0,0.00027504,2]
[425832067,1781956245000,-214.4,0.0002755,2]
[425832060,1781956245000,-11667.62,0.00027397,10]
[425832069,1781956245000,-163.87,0.0002755,30]
[425832070,1781956245000,-180.8,0.0002755,30]
[425832072,1781956245000,-165.27,0.0002755,30]
[425832071,1781956245000,-214.19,0.0002755,2]
[425832024,1781956245000,-1030.0,0.00027284,2]
[425832058,1781956245000,-163.83,0.00027397,2]
[425832057,1781956245000,-354.95921803,0.00027397,2]
[425832063,1781956245000,-500.0,0.000275,7]
[425832043,1781956245000,-152.0,0.00027284,2]
[425832020,1781956245000,-250.0,0.00027151,2]
[425832049,1781956245000,-152.0,0.00027284,2]
[425832028,1781956245000,-152.0,0.00027284,2]
[425832027,1781956245000,-721.12765534,0.00027284,2]
[425832035,1781956245000,-152.0,0.00027284,2]
[425832030,1781956245000,-152.0,0.00027284,2]
[425832031,1781956245000,-151.0,0.00027284,2]
[425832034,1781956245000,-500.0,0.00027284,2]
[425832032,1781956245000,-500.0,0.00027284,2]
[425832029,1781956245000,-500.0,0.00027284,2]
[425832036,1781956245000,-500.0,0.00027284,2]
[425832037,1781956245000,-152.0,0.00027284,2]
[425832033,1781956245000,-152.0,0.00027284,2]
[425832041,1781956245000,-152.0,0.00027284,2]
[425832044,1781956245000,-500.0,0.00027284,2]
[425832045,1781956245000,-152.0,0.00027284,2]
[425832047,1781956245000,-152.0,0.00027284,2]
[425832042,1781956245000,-500.0,0.00027284,2]
[425832040,1781956245000,-500.0,0.00027284,2]
[425832038,1781956245000,-500.0,0.00027284,2]
[425832039,1781956245000,-152.0,0.00027284,2]
[425832046,1781956245000,-500.0,0.00027284,2]
[425832114,1781956246000,-369.19555262,0.000283,2]
[425832098,1781956246000,-974.6910821,0.00027932,2]
[425832104,1781956246000,-500.0,0.00028108,30]
[425832102,1781956246000,-640.84652929,0.00028108,30]
[425832101,1781956246000,-180.55,0.00028033,30]
[425832106,1781956246000,-500.0,0.00028108,10]
[425832115,1781956246000,-369.19555262,0.000283,2]
[425832109,1781956246000,-263.3,0.00028267,2]
[425832116,1781956246000,-369.19555262,0.000283,2]
[425832108,1781956246000,-180.55,0.00028194,7]
[425832111,1781956246000,-163.87,0.00028275,7]
[425832129,1781956246000,-173.0,0.00028904,30]
[425832112,1781956246000,-165.27,0.00028275,7]
[425832107,1781956246000,-180.8,0.00028194,7]
[425832113,1781956246000,-199.72,0.00028288,120]
[425832126,1781956246000,-150.0,0.00028767,2]
[425832122,1781956246000,-155.08,0.00028637,30]
[425832120,1781956246000,-315.292015,0.00028397,7]
[425832118,1781956246000,-417.06247972,0.0002838,2]
[425832128,1781956246000,-193.0,0.00028849,5]
[425832124,1781956246000,-3066.47522578,0.00028745,2]
[425832119,1781956246000,-156.0,0.0002838,120]
[425832105,1781956246000,-500.0,0.00028108,30]
[425832110,1781956246000,-155.08,0.00028275,2]
[425832103,1781956246000,-500.0,0.00028108,30]
[425832074,1781956246000,-151.0,0.00027559,2]
[425832100,1781956246000,-180.8,0.00028033,30]
[425832082,1781956246000,-180.55,0.00027711,7]
[425832073,1781956246000,-180.55,0.0002755,30]
[425832079,1781956246000,-504.0,0.00027636,9]
[425832076,1781956246000,-14301.81912946,0.0002756,2]
[425832078,1781956246000,-193.28,0.00027618,2]
[425832080,1781956246000,-151.0,0.00027669,2]
[425832077,1781956246000,-151.0,0.00027614,2]
[425832081,1781956246000,-180.8,0.00027711,7]
[425832084,1781956246000,-151.0,0.00027779,2]
[425832083,1781956246000,-151.0,0.00027724,2]
[425832094,1781956246000,-158.0,0.00027931,30]
[425832086,1781956246000,-151.0,0.00027834,2]
[425832087,1781956246000,-180.8,0.00027872,2]
[425832121,1781956246000,-200.13817817,0.0002842,2]
[425832090,1781956246000,-300.0,0.000279,10]
[425832085,1781956246000,-417.06247972,0.00027832,2]
[425832092,1781956246000,-276.0,0.00027918,2]
[425832093,1781956246000,-500.0,0.00027931,30]
[425832088,1781956246000,-180.55,0.00027872,2]
[425832091,1781956246000,-155.08,0.00027912,7]
[425832096,1781956246000,-500.0,0.00027931,30]
[425832095,1781956246000,-291.10532732,0.00027931,7]
[425832099,1781956246000,-5186.15843563,0.00027935,2]
[425832097,1781956246000,-344094.0203692,0.00027932,2]
[425832125,1781956246000,-354.95921803,0.00028766,2]
[425832089,1781956246000,-580.59,0.000279,30]
[425832127,1781956246000,-14301.81912946,0.00028808,2]
[425832161,1781956246000,-310.0,0.000297,2]
[425832152,1781956246000,-165.27,0.00029,2]
[425832156,1781956246000,-248.0,0.00029215,10]
[425832159,1781956246000,-417.06247972,0.00029476,2]
[425832162,1781956246000,-316.0,0.000297,2]
[425832154,1781956246000,-201.6445164,0.0002913,7]
[425832163,1781956246000,-3848.22205998,0.00029731,5]
[425832164,1781956246000,-550.77794002,0.00029731,5]
[425832166,1781956246000,-5186.15843563,0.0002989,2]
[425832165,1781956246000,-504.0,0.00029818,11]
[425832168,1781956246000,-248.0,0.000299,10]
[425832160,1781956246000,-889.63,0.00029589,2]
[425832167,1781956246000,-154.645292,0.00029893,3]
[425832180,1781956246000,-186.0,0.00029904,30]
[425832169,1781956246000,-173.0,0.00029904,30]
[425832171,1781956246000,-156.0,0.00029904,30]
[425832172,1781956246000,-352.0,0.00029904,30]
[425832173,1781956246000,-638.0,0.00029904,30]
[425832179,1781956246000,-168.0,0.00029904,30]
[425832174,1781956246000,-166.0,0.00029904,30]
[425832175,1781956246000,-151.0,0.00029904,30]
[425832177,1781956246000,-179.0,0.00029904,30]
[425832178,1781956246000,-155.0,0.00029904,30]
[425832181,1781956246000,-158.0,0.00029904,30]
[425832170,1781956246000,-153.0,0.00029904,30]
[425832158,1781956246000,-284.0,0.00029219,10]
[425832117,1781956246000,-152.0,0.00028361,4]
[425832157,1781956246000,-244.0,0.00029219,10]
[425832155,1781956246000,-284.0,0.0002921,10]
[425832123,1781956246000,-504.0,0.00028727,10]
[425832130,1781956246000,-153.0,0.00028904,30]
[425832131,1781956246000,-156.0,0.00028904,30]
[425832139,1781956246000,-186.0,0.00028904,30]
[425832134,1781956246000,-166.0,0.00028904,30]
[425832133,1781956246000,-638.0,0.00028904,30]
[425832132,1781956246000,-352.0,0.00028904,30]
[425832135,1781956246000,-151.0,0.00028904,30]
[425832137,1781956246000,-155.0,0.00028904,30]
[425832136,1781956246000,-179.0,0.00028904,30]
[425832141,1781956246000,-189.0,0.00028905,30]
[425832138,1781956246000,-168.0,0.00028904,30]
[425832140,1781956246000,-158.0,0.00028904,30]
[425832143,1781956246000,-2500.0,0.00029,2]
[425832147,1781956246000,-150.0,0.00029,2]
[425832142,1781956246000,-417.06247972,0.00028928,2]
[425832151,1781956246000,-163.88,0.00029,2]
[425832144,1781956246000,-541.24282986,0.00029,2]
[425832145,1781956246000,-1054.0,0.00029,2]
[425832146,1781956246000,-150.0,0.00029,2]
[425832148,1781956246000,-2000.0,0.00029,2]
[425832149,1781956246000,-185.93,0.00029,2]
[425832153,1781956246000,-155.11,0.00029,7]
[425832150,1781956246000,-500.0,0.00029,2]
[425832211,1781956247000,-550.0,0.00030137,30]
[425832210,1781956247000,-550.0,0.00030137,30]
[425832215,1781956247000,-1276.0,0.00030151,2]
[425832217,1781956247000,-1229.0,0.00030151,2]
[425832213,1781956247000,-889.63,0.00030137,2]
[425832218,1781956247000,-150.0,0.00030151,2]
[425832208,1781956247000,-2755.0,0.00030137,30]
[425832216,1781956247000,-383.0,0.00030151,2]
[425832220,1781956247000,-150.0,0.00030151,2]
[425832207,1781956247000,-3000.0,0.00030137,30]
[425832224,1781956247000,-604.0,0.0003021,2]
[425832235,1781956247000,-889.63291974,0.00030685,2]
[425832230,1781956247000,-1204.0,0.00030334,30]
[425832223,1781956247000,-150.0,0.00030206,2]
[425832229,1781956247000,-263.3,0.00030239,2]
[425832225,1781956247000,-150.0,0.0003021,2]
[425832228,1781956247000,-190.0,0.0003021,2]
[425832221,1781956247000,-6081.0,0.00030151,2]
[425832222,1781956247000,-4446.0,0.00030156,5]
[425832227,1781956247000,-150.0,0.0003021,2]
[425832237,1781956247000,-4709.16,0.00030699,2]
[425832240,1781956247000,-700.0,0.000309,11]
[425832212,1781956247000,-352.0,0.00030137,30]
[425832226,1781956247000,-150.0,0.0003021,2]
[425832209,1781956247000,-550.0,0.00030137,30]
[425832205,1781956247000,-150.0,0.00030137,30]
[425832206,1781956247000,-283.0,0.00030137,30]
[425832242,1781956247000,-173.0,0.00030904,30]
[425832184,1781956247000,-500.0,0.00029999,2]
[425832183,1781956247000,-500.0,0.00029999,30]
[425832185,1781956247000,-500.0,0.00029999,7]
[425832186,1781956247000,-15000.0,0.0003,2]
[425832192,1781956247000,-162.35,0.00030023,120]
[425832193,1781956247000,-417.06247972,0.00030024,2]
[425832187,1781956247000,-7446.06,0.0003,2]
[425832182,1781956247000,-189.0,0.00029905,30]
[425832190,1781956247000,-599.60298507,0.00030023,2]
[425832189,1781956247000,-4599.8276893,0.0003,2]
[425832214,1781956247000,-3560.0,0.00030151,2]
[425832188,1781956247000,-500.0,0.0003,30]
[425832195,1781956247000,-14301.81912946,0.00030056,2]
[425832194,1781956247000,-162.84265129,0.00030037,2]
[425832197,1781956247000,-3066.47522578,0.00030121,2]
[425832198,1781956247000,-354.95921803,0.00030135,2]
[425832200,1781956247000,-163.83,0.00030137,2]
[425832199,1781956247000,-145337.73364895,0.00030136,2]
[425832204,1781956247000,-150.0,0.00030137,30]
[425832201,1781956247000,-322.3042853,0.00030137,2]
[425832202,1781956247000,-188.7208008,0.00030137,30]
[425832196,1781956247000,-20908.73144785,0.00030109,2]
[425832203,1781956247000,-150.0,0.00030137,30]
[425832191,1781956247000,-747.80937859,0.00030023,2]
[425832238,1781956247000,-173.58,0.00030719,2]
[425832219,1781956247000,-215.0,0.00030151,2]
[425832233,1781956247000,-248.0,0.00030585,10]
[425832267,1781956247000,-1000.0,0.000312,7]
[425832275,1781956247000,-150.0,0.00031233,30]
[425832268,1781956247000,-156.0,0.00031233,120]
[425832277,1781956247000,-150.0,0.00031233,60]
[425832266,1781956247000,-4709.16,0.0003116,2]
[425832269,1781956247000,-150.0,0.00031233,120]
[425832270,1781956247000,-257.0,0.00031233,120]
[425832273,1781956247000,-347.0,0.00031233,60]
[425832271,1781956247000,-450.0,0.00031233,60]
[425832272,1781956247000,-450.0,0.00031233,60]
[425832274,1781956247000,-150.0,0.00031233,30]
[425832263,1781956247000,-199.72,0.00031116,120]
[425832278,1781956247000,-150.0,0.00031233,120]
[425832281,1781956247000,-500.0,0.00031233,2]
[425832279,1781956247000,-500.0,0.00031233,2]
[425832282,1781956247000,-317.01670869,0.00031233,2]
[425832288,1781956247000,-150.0,0.00031233,60]
[425832286,1781956247000,-150.0,0.00031233,60]
[425832283,1781956247000,-150.0,0.00031233,60]
[425832285,1781956247000,-150.0,0.00031233,60]
[425832284,1781956247000,-150.0,0.00031233,60]
[425832287,1781956247000,-150.0,0.00031233,60]
[425832290,1781956247000,-150.0,0.00031233,60]
[425832234,1781956247000,-513.498816,0.00030636,120]
[425832280,1781956247000,-500.0,0.00031233,2]
[425832259,1781956247000,-4008.99,0.00031003,28]
[425832276,1781956247000,-200.0,0.00031233,30]
[425832258,1781956247000,-15000.0,0.00031,2]
[425832236,1781956247000,-159.13,0.00030685,30]
[425832231,1781956247000,-152.0,0.00030537,5]
[425832241,1781956247000,-307.36790336,0.000309,2]
[425832232,1781956247000,-417.06247972,0.00030572,2]
[425832239,1781956247000,-257.4,0.000309,120]
[425832244,1781956247000,-156.0,0.00030904,30]
[425832254,1781956247000,-189.0,0.00030905,30]
[425832243,1781956247000,-153.0,0.00030904,30]
[425832261,1781956247000,-500.0,0.00031036,60]
[425832248,1781956247000,-151.0,0.00030904,30]
[425832249,1781956247000,-179.0,0.00030904,30]
[425832246,1781956247000,-638.0,0.00030904,30]
[425832251,1781956247000,-168.0,0.00030904,30]
[425832247,1781956247000,-166.0,0.00030904,30]
[425832250,1781956247000,-155.0,0.00030904,30]
[425832260,1781956247000,-237.747,0.00031003,28]
[425832245,1781956247000,-352.0,0.00030904,30]
[425832262,1781956247000,-450.0778,0.00031055,2]
[425832265,1781956247000,-311.07,0.00031159,2]
[425832256,1781956247000,-159.13,0.00030973,30]
[425832264,1781956247000,-417.06247972,0.0003112,2]
[425832255,1781956247000,-504.0,0.00030909,12]
[425832253,1781956247000,-158.0,0.00030904,30]
[425832252,1781956247000,-186.0,0.00030904,30]
[425832289,1781956247000,-150.0,0.00031233,60]
[425832257,1781956247000,-55000.0,0.00031,30]
[425832296,1781956248000,-150.0,0.00031233,60]
[425832291,1781956248000,-150.0,0.00031233,60]
[425832299,1781956248000,-150.0,0.00031233,60]
[425832293,1781956248000,-150.0,0.00031233,60]
[425832295,1781956248000,-150.0,0.00031233,60]
[425832298,1781956248000,-150.0,0.00031233,60]
[425832292,1781956248000,-150.0,0.00031233,60]
[425832300,1781956248000,-150.0,0.00031233,60]
[425832294,1781956248000,-150.0,0.00031233,60]
[425832302,1781956248000,-150.0,0.00031233,60]
[425832297,1781956248000,-150.0,0.00031233,60]
[425832309,1781956248000,-500.0,0.00031349,30]
[425832313,1781956248000,-8451.25887857,0.0003135,2]
[425832311,1781956248000,-20389.7179902,0.0003135,2]
[425832312,1781956248000,-3720.49673213,0.0003135,2]
[425832305,1781956248000,-212.0,0.0003127,10]
[425832308,1781956248000,-500.0,0.00031349,30]
[425832301,1781956248000,-150.0,0.00031233,60]
[425832303,1781956248000,-150.0,0.00031233,60]
[425832310,1781956248000,-10297.05839688,0.0003135,2]
[425832307,1781956248000,-167.87249728,0.0003134,2]
[425832304,1781956248000,-159.13,0.00031262,30]
[425832306,1781956248000,-14301.81912946,0.00031304,2]